bitfinex-derivatives/quotes_SOLF0:USTF0_20260123
["timestamp","ask_amount","ask_price","bid_price","bid_amount"]
[1769143344717,0.05881297,128.95,128.91,0.54050558]
[1769143346121,6.9853,128.99,128.95,0.54050557]
[1769143347017,6.9853,128.99,128.95,2.5951426]
[1769143347522,3.30371754,129.0,128.95,2.5951426]
[1769143351721,6.9845,129.01,128.96,0.53264843]
[1769143353327,3.38003884,129.02,128.96,0.53264843]
[1769143354927,10.36383884,129.02,128.97,0.53264843]
[1769143357821,3.38003884,129.0,128.95,0.53264843]
[1769143366932,5.43467587,129.0,128.94,0.53264843]
[1769143367324,3.38003884,128.99,128.94,0.53264843]
[1769143369033,10.36553884,128.99,128.94,0.53264843]
[1769143370437,3.38003884,128.98,128.92,0.53264843]
[1769143370637,10.36603884,128.98,128.92,0.53264843]
[1769143375442,3.38003884,128.97,128.92,0.53264843]
[1769143376044,6.986,128.98,128.92,0.53264843]
[1769143376252,10.36603884,128.98,128.92,0.53264843]
[1769143377544,10.36603884,128.98,128.92,2.58728546]
[1769143379851,3.38003884,128.99,128.94,2.05463703]
[1769143380753,3.38003884,128.99,128.94,2.58728546]
[1769143382653,6.985,129.0,128.94,2.05463703]
[1769143382855,3.22132275,129.01,128.96,2.58753956]
[1769143383251,3.22132275,129.01,128.96,2.64392949]
[1769143384456,3.22132275,129.01,128.96,0.5902341]
[1769143388768,3.22132275,129.01,128.96,0.05638993]
[1769143394171,10.20562275,129.01,128.96,0.05638993]
[1769143394769,3.38181164,129.0,128.96,0.05638993]
[1769143400064,10.36671164,129.0,128.96,0.05638993]
[1769143401270,3.38181164,129.0,128.96,0.05638993]
[1769143409173,3.38181164,129.0,128.96,2.11008532]
[1769143426692,0.05798096,128.99,128.96,2.11008532]
[1769143428186,1.0021554,129.0,128.96,2.11008532]
[1769143433190,3.23118901,129.03,128.97,2.91423408]
[1769143433398,3.23118901,129.03,128.98,2.05369539]
[1769143433998,3.23118901,129.03,128.99,0.05051294]
[1769143437502,3.23118901,129.03,128.99,5.01844241]
[1769143440405,3.23118901,129.05,128.99,5.01844241]
[1769143440909,3.23118901,129.05,129.0,2.05369539]
[1769143444913,3.23118901,129.05,129.0,2.0524263]
[1769143459224,0.05064681,129.04,129.0,2.0524263]
[1769143468727,0.05064681,129.04,129.0,4.96349903]
[1769143473631,3.40269125,129.07,129.01,4.96404048]
[1769143473932,3.40269125,129.07,129.02,4.96404048]
[1769143474123,6.9808,129.08,129.02,4.96404048]
[1769143474325,3.40269125,129.09,129.04,2.91161418]
[1769143475133,3.40269125,129.09,129.05,0.05590423]
[1769143476430,3.40269125,129.09,129.05,2.10833053]
[1769143477534,10.38129125,129.12,129.06,2.91161418]
[1769143477729,3.40269125,129.11,129.06,2.91161418]
[1769143478132,3.40269125,129.11,129.07,0.04927055]
[1769143479330,3.40269125,129.11,129.04,2.91161418]
[1769143480646,3.40269125,129.11,129.06,0.04911474]
[1769143481033,3.40269125,129.1,129.06,0.04911474]
[1769143494341,3.40269125,129.09,129.02,2.91161418]
[1769143494549,3.40269125,129.08,129.02,5.01315522]
[1769143495744,0.05950779,129.06,129.04,0.05059581]
[1769143500248,6.9827,129.04,128.99,2.96072892]
[1769143500449,3.40269125,129.03,128.97,2.0524263]
[1769143501152,3.48728726,129.02,128.97,2.0524263]
[1769143503053,10.47118726,129.02,128.97,2.0524263]
[1769143504954,10.47118726,129.02,128.96,2.05349707]
[1769143506759,10.47118726,129.02,128.97,2.05349707]
[1769143506951,3.48728726,129.02,128.97,2.05349707]
[1769143508655,10.46908726,129.06,128.99,2.05349707]
[1769143508860,10.46908726,129.06,129.02,2.05349707]
[1769143509061,10.46908726,129.06,129.01,2.05349707]
[1769143510662,10.46908726,129.06,129.02,2.05349707]
[1769143510861,6.9818,129.06,129.03,9.707e-05]
[1769143511457,10.46798726,129.08,129.03,9.707e-05]
[1769143511764,3.48728726,129.07,129.03,9.707e-05]
[1769143512151,3.48728726,129.07,129.04,2.05349707]
[1769143512862,3.48728726,129.07,129.04,0.05597746]
[1769143513764,3.48728726,129.09,129.04,0.05597746]
[1769143520667,0.05072115,129.08,129.04,0.05597746]
[1769143523352,0.05072115,129.08,129.04,2.10947453]
[1769143523556,3.48728726,129.09,129.04,2.10947453]
[1769143524962,3.48728726,129.09,129.04,0.05597746]
[1769143528466,3.48728726,129.09,129.04,2.10947453]
[1769143536264,9.03209707,129.12,129.05,2.05349707]
[1769143536265,3.48728726,129.11,129.05,2.05349707]
[1769143536866,3.48728726,129.11,129.07,0.058196]
[1769143537672,3.48728726,129.11,129.07,2.11169307]
[1769143538167,0.05379738,129.1,129.07,2.11169307]
[1769143538371,3.48728726,129.11,129.07,2.11169307]
[1769143539575,3.48728726,129.11,129.08,2.05349707]
[1769143546978,3.5463375,129.11,129.08,2.05349707]
[1769143550577,6.9768,129.15,129.09,2.05349707]
[1769143551284,6.9768,129.15,129.08,2.05349707]
[1769143551783,6.9768,129.15,129.1,0.05087027]
[1769143552687,3.30637456,129.14,129.1,0.05087027]
[1769143556087,3.30637456,129.14,129.08,2.05349707]
[1769143557281,0.05360976,129.12,129.1,0.04904001]
[1769143564088,3.31990932,129.12,129.06,3.2390059]
[1769143564296,3.31990932,129.12,129.04,10.25029502]
[1769143564495,3.31990932,129.12,129.05,2.05349707]
[1769143564793,3.26629956,129.12,129.05,2.05349707]
[1769143564990,3.26629956,129.12,129.05,5.37087657]
[1769143565494,3.26629956,129.12,129.07,0.05501591]
[1769143569998,3.46856956,129.11,129.07,0.05501591]
[1769143571800,3.46856956,129.11,129.07,2.10585291]
[1769143572406,6.9775,129.14,129.08,2.050837]
[1769143572805,215.24397536,129.16,129.1,2.050837]
[1769143572998,215.24397536,129.16,129.1,2.10604486]
[1769143573199,5.71753246,129.15,129.1,2.10604486]
[1769143573600,215.24397536,129.16,129.1,2.10604486]
[1769143574602,3.46856956,129.15,129.1,2.10604486]
[1769143575200,3.46856956,129.15,129.12,2.050837]
[1769143575705,3.46856956,129.15,129.11,2.050837]
[1769143581711,208.26777536,129.16,129.12,2.050837]
[1769143581910,9.85746075,129.16,129.13,2.050837]
[1769143582509,9.85746075,129.16,129.13,2.10258046]
[1769143583512,9.85746075,129.16,129.13,0.05174346]
[1769143583711,13.32603031,129.16,129.13,0.05174346]
[1769143584604,13.37953552,129.16,129.11,5.37087657]
[1769143584907,13.37953552,129.16,129.11,3.32003957]
[1769143585906,13.37953552,129.16,129.12,0.05359023]
[1769143586813,3.46856956,129.15,129.12,0.05359023]
[1769143587609,3.46856956,129.15,129.09,3.32003957]
[1769143588909,0.05733983,129.13,129.09,3.32003957]
[1769143592912,0.05733983,129.13,129.09,5.37087657]
[1769143598718,0.05733983,129.13,129.1,2.050837]
[1769143599322,3.48921932,129.13,129.1,2.050837]
[1769143600021,0.05733983,129.13,129.1,2.050837]
[1769143602825,9.85746075,129.16,129.12,5.39563017]
[1769143603026,9.85746075,129.16,129.13,2.050837]
[1769143604024,9.85746075,129.16,129.13,2.10531423]
[1769143605429,9.85746075,129.16,129.14,2.050837]
[1769143608021,9.85746075,129.16,129.13,2.10531423]
[1769143611026,3.43187949,129.19,129.15,2.050837]
[1769143611727,3.43187949,129.19,129.16,0.05065826]
[1769143611930,3.43187949,129.19,129.16,2.10149526]
[1769143612635,3.43187949,129.21,129.17,2.050837]
[1769143613528,3.43187949,129.21,129.16,2.10149526]
[1769143613728,3.43187949,129.23,129.17,5.39563017]
[1769143613930,3.43187949,129.23,129.16,0.05065826]
[1769143614132,3.43187949,129.23,129.17,2.050837]
[1769143614630,3.43187949,129.23,129.18,0.05532734]
[1769143618431,3.43187949,129.22,129.18,0.05532734]
[1769143618638,3.4822117,129.22,129.16,2.050837]
[1769143618844,3.43187949,129.25,129.19,3.34479317]
[1769143619036,2.050837,129.24,129.17,3.34479317]
[1769143619228,3.43187949,129.23,129.16,2.050837]
[1769143619538,3.43187949,129.23,129.16,5.39563017]
[1769143620338,3.43187949,129.22,129.18,0.05274935]
[1769143625641,3.43187949,129.22,129.15,2.050837]
[1769143625842,3.35612615,129.2,129.15,2.050837]
[1769143626142,0.05369656,129.21,129.16,3.182057]
[1769143626842,0.05369656,129.21,129.16,5.22941734]
[1769143627147,0.05369656,129.21,129.17,3.182057]
[1769143627442,3.35612615,129.24,129.19,3.182057]
[1769143627636,2.04736034,129.27,129.19,3.182057]
[1769143627844,3.35612615,129.26,129.2,5.22941734]
[1769143628646,3.35612615,129.26,129.21,3.182057]
[1769143629139,3.35612615,129.26,129.22,2.04736034]
[1769143629747,3.35612615,129.26,129.21,5.22941734]
[1769143629949,3.35612615,129.26,129.23,0.05638229]
[1769143631746,3.4089207,129.26,129.23,0.05638229]
[1769143632546,0.05279455,129.26,129.23,2.10374263]
[1769143633253,3.35612615,129.3,129.24,2.04736034]
[1769143634752,3.35612615,129.3,129.26,0.0589726]
[1769143635855,0.05586659,129.29,129.26,0.0589726]
[1769143636048,0.05586659,129.29,129.26,2.10633294]
[1769143636248,0.05586659,129.29,129.26,0.0589726]
[1769143638960,3.41199274,129.29,129.26,0.0589726]
[1769143643958,3.41199274,129.29,129.24,2.04736034]
[1769143645160,3.41199274,129.29,129.25,0.05102492]
[1769143646669,3.35612615,129.28,129.22,2.04736034]
[1769143647869,0.05554331,129.26,129.22,2.04736034]
[1769143648167,0.05554331,129.26,129.22,5.22941734]
[1769143648669,3.41166946,129.26,129.2,3.182057]
[1769143648873,3.41166946,129.26,129.21,2.04736034]
[1769143650869,3.41166946,129.26,129.2,3.182057]
[1769143651057,3.41166946,129.26,129.21,2.04736034]
[1769143651867,3.41166946,129.26,129.2,2.04736034]
[1769143652071,3.41166946,129.26,129.19,2.04736034]
[1769143652468,3.35612615,129.26,129.21,0.05643621]
[1769143652863,0.04895534,129.24,129.21,0.05643621]
[1769143657073,0.04895534,129.24,129.21,0.05643621]
[1769143659374,3.46605455,129.24,129.21,0.05643621]
[1769143660373,3.46605455,129.24,129.18,3.3138516]
[1769143662880,3.46605455,129.24,129.2,0.0571762]
[1769143663474,3.46605455,129.24,129.17,2.04736034]
[1769143663871,3.41709921,129.23,129.16,3.3138516]
[1769143664071,3.41709921,129.22,129.16,5.36121194]
[1769143664580,0.05885424,129.2,129.16,5.36121194]
[1769143664966,3.47595345,129.2,129.14,5.36121194]
[1769143665974,3.47595345,129.2,129.14,3.3138516]
[1769143666579,3.47595345,129.2,129.13,2.04736034]
[1769143667572,3.41709921,129.19,129.13,2.04736034]
[1769143668084,3.41709921,129.19,129.13,5.36121194]
[1769143668382,0.05864371,129.17,129.13,5.36121194]
[1769143670282,3.47574292,129.17,129.11,3.3138516]
[1769143670678,3.41709921,129.17,129.11,3.3138516]
[1769143670984,0.04918469,129.15,129.11,3.3138516]
[1769143671179,3.4662839,129.15,129.09,3.3138516]
[1769143671380,3.4662839,129.15,129.09,5.36121194]
[1769143671588,3.41709921,129.15,129.09,5.36121194]
[1769143671978,0.05743692,129.13,129.09,5.36121194]
[1769143672279,0.05743692,129.13,129.1,3.3138516]
[1769143672477,0.05743692,129.13,129.09,2.04736034]
[1769143672986,0.05743692,129.13,129.09,5.36121194]
[1769143674581,10.39289921,129.17,129.1,3.3138516]
[1769143674891,10.39159921,129.19,129.13,5.36121194]
[1769143675574,10.39159921,129.19,129.15,2.04736034]
[1769143675888,0.0546879,129.17,129.15,2.04736034]
[1769143676190,10.39159921,129.19,129.16,0.05339363]
[1769143677290,10.4427562,129.19,129.16,0.05339363]
[1769143680088,3.4682562,129.19,129.16,0.05339363]
[1769143681090,3.41709921,129.18,129.11,3.3138516]
[1769143681290,3.41709921,129.18,129.13,2.04736034]
[1769143681490,3.41709921,129.18,129.14,2.04736034]
[1769143682181,6.9748,129.19,129.14,2.04736034]
[1769143682382,0.05509111,129.17,129.14,2.04736034]
[1769143682786,3.30326945,129.2,129.15,2.04736034]
[1769143682986,3.30326945,129.2,129.16,2.04736034]
[1769143683487,3.30326945,129.2,129.17,2.04736034]
[1769143683786,3.30326945,129.22,129.17,2.04736034]
[1769143683992,3.30326945,129.22,129.19,2.04736034]
[1769143684182,6.9724,129.23,129.19,2.04736034]
[1769143684183,0.05516027,129.2,129.19,2.04736034]
[1769143684383,6.9724,129.23,129.19,2.04736034]
[1769143684580,3.30326945,129.26,129.21,2.04736034]
[1769143684785,3.30326945,129.26,129.22,6.034e-05]
[1769143684990,3.30326945,129.26,129.21,2.04736034]
[1769143685191,3.30326945,129.26,129.2,2.04736034]
[1769143685588,3.30326945,129.26,129.22,0.0533392]
[1769143685896,3.19852253,129.25,129.22,0.0533392]
[1769143688487,6.9709,129.26,129.22,0.0533392]
[1769143688688,0.05633571,129.25,129.22,2.10069954]
[1769143688894,0.05633571,129.25,129.22,0.0533392]
[1769143694200,3.25485824,129.25,129.22,0.0533392]
[1769143698599,0.05633571,129.25,129.22,3.53274171]
[1769143699606,0.05633571,129.25,129.22,0.0533392]
[1769143700506,3.19852253,129.27,129.22,2.09917909]
[1769143704012,3.19852253,129.27,129.22,0.0533392]
[1769143715113,5.24436242,129.27,129.22,0.0533392]
[1769143715319,3.14593223,129.26,129.22,0.0533392]
[1769143716215,3.14593223,129.26,129.2,3.47940251]
[1769143717418,3.14593223,129.26,129.22,0.04935273]
[1769143717820,0.05098383,129.24,129.22,0.02709593]
[1769143718023,3.19691606,129.24,129.18,3.27848056]
[1769143719217,3.19691606,129.24,129.2,0.04966103]
[1769143721116,10.16891606,129.24,129.2,0.04966103]
[1769143722318,3.14593223,129.23,129.16,3.27848056]
[1769143722520,3.14593223,129.23,129.16,5.32432045]
[1769143723421,3.14593223,129.22,129.15,5.32432045]
[1769143723822,3.19975504,129.21,129.15,5.32432045]
[1769143726531,0.05382281,129.21,129.17,5.32432045]
[1769143726919,3.14593223,129.23,129.17,5.32432045]
[1769143727328,0.05509302,129.2,129.17,3.27848056]
[1769143734034,0.05509302,129.2,129.17,3.33609535]
[1769143738640,0.05509302,129.2,129.17,0.05761479]
[1769143739046,2.10093291,129.2,129.17,0.05761479]
[1769143740251,0.05509302,129.2,129.17,0.05761479]
[1769143740437,0.05509302,129.2,129.17,3.33609535]
[1769143742753,10.11853223,129.23,129.17,3.33609535]
[1769143744156,0.05947939,129.21,129.17,3.33609535]
[1769143752652,3.4580182,129.21,129.17,0.00252177]
[1769143758763,3.4580182,129.21,129.1,3.46434992]
[1769143758968,5.4459411,129.18,129.11,3.46434992]
[1769143759266,3.39853881,129.18,129.11,3.46434992]
[1769143760060,0.05011025,129.16,129.11,3.46434992]
[1769143762064,5.49605135,129.16,129.11,3.46434992]
[1769143762262,3.44864906,129.16,129.11,3.46434992]
[1769143762961,0.05011025,129.16,129.11,3.46434992]
[1769143764467,3.44864906,129.16,129.09,3.46434992]
[1769143765863,3.44864906,129.16,129.11,0.0498483]
[1769143772567,5.38639055,129.15,129.11,0.0498483]
[1769143772773,3.33898826,129.14,129.11,0.0498483]
[1769143773770,3.33898826,129.14,129.05,3.17248989]
[1769143773971,3.33898826,129.14,129.06,5.21989218]
[1769143774177,3.33898826,129.14,129.07,3.17248989]
[1769143775172,0.04953654,129.12,129.07,3.17248989]
[1769143775372,3.3885248,129.12,129.07,3.17248989]
[1769143778779,0.04953654,129.12,129.07,3.17248989]
[1769143778970,0.04953654,129.12,129.08,2.04740229]
[1769143781377,0.04953654,129.12,129.08,5.21989218]
[1769143782671,0.04953654,129.12,129.09,2.04740229]
[1769143783680,0.04953654,129.12,129.06,3.17248989]
[1769143783980,0.04953654,129.12,129.06,5.21989218]
[1769143786671,3.33898826,129.1,129.04,3.17248989]
[1769143787489,0.05072822,129.08,129.04,3.17248989]
[1769143789086,0.05072822,129.08,129.02,2.04740229]
[1769143789087,0.05072822,129.08,129.02,5.21989218]
[1769143789286,0.05072822,129.08,129.05,3.17248989]
[1769143789691,3.33898826,129.1,129.05,3.17248989]
[1769143789983,0.05142183,129.08,129.06,2.04740229]
[1769143790174,6.9791,129.11,129.06,2.10671591]
[1769143790375,3.33898826,129.12,129.06,5.2792058]
[1769143790572,3.33898826,129.12,129.06,3.23180351]
[1769143791380,5.38639055,129.12,129.06,3.23180351]
[1769143791582,0.05168297,129.1,129.06,3.23180351]
[1769143794578,10.31618826,129.14,129.07,5.21989218]
[1769143795890,0.05802243,129.12,129.07,5.21989218]
[1769143799492,0.05802243,129.12,129.08,3.17248989]
[1769143800890,0.05802243,129.12,129.08,5.21989218]
[1769143802194,3.36963908,129.12,129.06,5.33002312]
[1769143802688,3.31161665,129.12,129.06,5.33002312]
[1769143802884,0.05383601,129.1,129.06,5.33002312]
[1769143804096,0.05383601,129.1,129.06,3.28262083]
[1769143805894,0.05383601,129.1,129.06,5.33002312]
[1769143806494,0.05383601,129.1,129.07,3.15067519]
[1769143806798,10.3197443,129.14,129.08,3.15067519]
[1769143807591,10.3197443,129.14,129.09,5.19807748]
[1769143807999,10.3197443,129.14,129.1,0.0560057]
[1769143809701,6.9774,129.14,129.1,0.0560057]
[1769143810598,10.3186443,129.16,129.11,5.20052763]
[1769143810807,115.75689532,129.18,129.11,5.20052763]
[1769143810808,3.3423443,129.18,129.12,3.15067519]
[1769143811599,10.3181443,129.17,129.11,2.04985244]
[1769143811800,3.3423443,129.16,129.1,5.20052763]
[1769143812794,0.05893652,129.14,129.1,5.20052763]
[1769143815897,0.05893652,129.14,129.1,3.15067519]
[1769143835708,3.41463619,129.21,129.14,3.47576246]
[1769143836606,3.41463619,129.21,129.15,2.04985244]
[1769143836802,3.41463619,129.21,129.15,5.5256149]
[1769143837006,10.38833619,129.21,129.16,0.05849237]
[1769143838211,3.41463619,129.21,129.16,3.53425483]
[1769143838410,0.05067804,129.2,129.16,5.483e-05]
[1769143838611,3.46531423,129.2,129.12,2.04985244]
[1769143839003,10.38873619,129.2,129.12,2.04985244]
[1769143839714,0.05717808,129.17,129.12,2.04985244]
[1769143840008,0.05717808,129.17,129.1,6.9791]
[1769143840214,0.05717808,129.17,129.11,2.04985244]
[1769143840411,0.05717808,129.17,129.11,5.5256149]
[1769143840613,3.41463619,129.18,129.11,5.5256149]
[1769143840814,3.41463619,129.18,129.12,3.47576246]
[1769143841113,0.05666884,129.15,129.12,3.47576246]
[1769143848623,3.41463619,129.18,129.12,3.47576246]
[1769143848824,3.41463619,129.18,129.12,3.52730005]
[1769143852721,3.41463619,129.2,129.13,3.47576246]
[1769143853120,3.41463619,129.2,129.14,2.04985244]
[1769143853318,3.41463619,129.2,129.15,3.47576246]
[1769143853518,3.41463619,129.2,129.15,3.53438381]
[1769143859423,9.02365244,129.21,129.15,3.53438381]
[1769143860224,12.43828863,129.21,129.15,3.53438381]
[1769143860630,3.41463619,129.21,129.15,3.53438381]
[1769143861125,7.24081589,129.24,129.15,3.53438381]
[1769143861325,3.42818674,129.27,129.2,2.16205862]
[1769143861526,120.12343175,129.3,129.24,2.04985244]
[1769143861527,3.42818674,129.3,129.24,2.04985244]
[1769143861829,3.42818674,129.32,129.25,0.11220618]
[1769143862031,3.42818674,129.32,129.26,0.05625879]
[1769143862925,5.47803918,129.29,129.26,0.00755411]
[1769143863629,5.47803918,129.29,129.22,2.15625864]
[1769143865333,3.42818674,129.28,129.22,2.15625864]
[1769143865528,0.0543872,129.27,129.22,2.15625864]
[1769143868938,0.0543872,129.27,129.22,0.1064062]
[1769143872030,3.48257394,129.27,129.22,0.1064062]
[1769143872832,3.42818674,129.26,129.2,2.15372775]
[1769143874539,0.05315215,129.24,129.2,2.15372775]
[1769143874746,0.05315215,129.24,129.21,0.10784327]
[1769143875842,12.44347122,129.29,129.22,0.05469112]
[1769143876240,3.42818674,129.29,129.22,0.05469112]
[1769143876445,3.45476281,129.32,129.25,0.05469112]
[1769143876947,5.50064729,129.32,129.27,0.04936705]
[1769143877139,3.45476281,129.31,129.27,0.04936705]
[1769143883237,3.45476281,129.31,129.25,2.04588448]
[1769143883442,3.45476281,129.31,129.24,2.14994265]
[1769143883642,0.05060056,129.3,129.24,2.14994265]
[1769143886141,3.48067985,129.3,129.25,2.04588448]
[1769143886340,3.48067985,129.3,129.24,2.04588448]
[1769143886541,3.43007929,129.28,129.22,0.10405817]
[1769143887345,0.05138895,129.26,129.22,0.10405817]
[1769143887549,0.05138895,129.26,129.22,2.14994265]
[1769143890052,0.05138895,129.26,129.22,0.10405817]
[1769143924579,3.48146824,129.26,129.2,2.14850698]
[1769143925276,3.48146824,129.26,129.21,0.10384007]
[1769143927272,3.48146824,129.26,129.21,2.14972455]
[1769143929778,3.48146824,129.26,129.22,0.05898066]
[1769143933180,0.05138895,129.26,129.22,0.16282073]
[1769143950186,3.48146824,129.26,129.22,0.05898066]
[1769143955692,0.05138895,129.26,129.22,0.16248721]
[1769143955898,3.43007929,129.28,129.23,0.10350655]
[1769143956199,3.43007929,129.28,129.24,2.04595661]
[1769143957200,3.43007929,129.28,129.2,0.10350655]
[1769143957201,3.40137007,129.26,129.2,0.10350655]
[1769143957395,3.40137007,129.26,129.15,0.16092499]
[1769143957396,3.40137007,129.25,129.15,0.16092499]
[1769143957701,3.40137007,129.25,129.18,0.16092499]
[1769143958600,0.05723062,129.23,129.18,0.16092499]
[1769143959988,0.05723062,129.23,129.19,2.04595661]
[1769143960195,3.40137007,129.25,129.2,0.16092499]
[1769143960499,3.40137007,129.25,129.2,0.22055795]
[1769143962503,3.40137007,129.25,129.21,2.04595661]
[1769143963505,3.40137007,129.27,129.21,2.2068816]
[1769143964200,3.40137007,129.27,129.23,0.05731582]
[1769143973304,10.37167007,129.27,129.19,0.16092499]
[1769143973501,3.42311906,129.26,129.19,2.2068816]
[1769143974811,3.42311906,129.26,129.2,0.21824081]
[1769143975915,3.37271216,129.25,129.19,2.04595661]
[1769143976613,0.04960565,129.23,129.19,2.04595661]
[1769143977320,3.42231781,129.23,129.18,0.21824081]
[1769143983320,3.37271216,129.21,129.14,0.21972973]
[1769143984030,0.05091027,129.19,129.14,0.21972973]
[1769143985130,3.37271216,129.17,129.1,0.22214584]
[1769143985633,0.05745357,129.15,129.1,0.22214584]
[1769143986632,3.43016573,129.15,129.08,0.22214584]
[1769143986934,3.43016573,129.15,129.08,2.26810245]
[1769143987129,3.37271216,129.15,129.08,2.26810245]
[1769143987335,0.05774094,129.13,129.08,2.26810245]
[1769143987926,0.05774094,129.13,129.08,0.22214584]
[1769143988132,0.05774094,129.13,129.08,2.26810245]
[1769143991434,3.37271216,129.15,129.09,0.22214584]
[1769143992633,3.37271216,129.15,129.11,0.05472928]
[1769143994733,3.37271216,129.17,129.11,0.27687512]
[1769143994944,3.37271216,129.17,129.12,2.27141857]
[1769143995436,3.37271216,129.17,129.13,0.05335071]
[1769144000647,3.37271216,129.19,129.13,0.05335071]
[1769144001041,3.37271216,129.19,129.13,2.10262344]
[1769144007945,3.3460368,129.18,129.1,0.22214584]
[1769144008147,3.40359952,129.17,129.09,2.04927273]
[1769144008540,3.3460368,129.17,129.09,2.04927273]
[1769144009551,0.05610836,129.14,129.09,2.04927273]
[1769144011946,3.52160924,129.14,129.08,0.27549655]
[1769144012144,3.52160924,129.14,129.08,2.32476928]
[1769144016445,3.46550088,129.13,129.07,6.9806]
[1769144017151,3.46550088,129.13,129.08,2.32738793]
[1769144017555,3.46550088,129.13,129.09,0.05207632]
[1769144024446,3.46550088,129.15,129.09,0.33019152]
[1769144024751,3.46550088,129.15,129.1,2.32738793]
[1769144025256,2.04927273,129.18,129.12,2.04927273]
[1769144025257,3.46550088,129.18,129.12,2.04927273]
[1769144026147,3.46550088,129.18,129.14,0.05028822]
[1769144030252,3.46550088,129.18,129.12,2.04927273]
[1769144030459,6.9747,129.19,129.12,2.04927273]
[1769144030460,3.52002598,129.17,129.12,2.04927273]
[1769144047178,3.52002598,129.17,129.12,2.37525078]
[1769144047379,0.0545251,129.17,129.14,2.04927273]
[1769144048290,3.37541779,129.17,129.14,2.04927273]
[1769144050882,3.32089269,129.22,129.17,0.32597805]
[1769144051077,3.32089269,129.22,129.18,2.04927273]
[1769144051277,110.47687273,129.27,129.2,2.04927273]
[1769144051986,6.971,129.26,129.2,2.04927273]
[1769144052578,0.05715489,129.24,129.2,2.04927273]
[1769144052887,0.05715489,129.24,129.2,2.04637003]
[1769144053180,3.29294574,129.27,129.22,2.04637003]
[1769144054583,3.29294574,129.26,129.21,2.04637003]
[1769144055882,3.29294574,129.24,129.21,2.04637003]
[1769144056674,3.29294574,129.24,129.2,2.04637003]
[1769144057885,0.05234049,129.23,129.2,2.04637003]
[1769144059486,3.34528623,129.23,129.16,3.27655052]
[1769144059684,3.34528623,129.23,129.18,2.04637003]
[1769144059881,3.29294574,129.23,129.18,2.04637003]
[1769144060277,0.05070566,129.22,129.18,2.04637003]
[1769144061383,3.3436514,129.22,129.18,2.04637003]
[1769144061588,3.29294574,129.24,129.2,2.04637003]
[1769144063983,3.29294574,129.25,129.22,2.04637003]
[1769144064785,3.29294574,129.25,129.22,2.09867708]
[1769144066988,3.29294574,129.25,129.22,0.05230705]
[1769144069894,3.29294574,129.25,129.17,6.9754]
[1769144069895,3.29294574,129.25,129.17,10.25195052]
[1769144070094,3.34574013,129.25,129.19,2.04637003]
[1769144070391,3.29294574,129.25,129.19,2.04637003]
[1769144071193,3.35133249,129.23,129.19,2.04637003]
[1769144072694,3.35133249,129.23,129.18,2.04637003]
[1769144083498,0.05838675,129.23,129.19,5.35753134]
[1769144083701,3.42869298,129.25,129.21,2.04637003]
[1769144084502,3.42869298,129.25,129.2,0.05279999]
[1769144084700,3.42869298,129.25,129.2,2.09917002]
[1769144086700,3.42869298,129.25,129.2,0.05279999]
[1769144087804,3.42869298,129.25,129.2,2.09917002]
[1769144093314,3.42869298,129.25,129.2,0.05279999]
[1769144095824,3.42869298,129.25,129.2,2.09917002]
[1769144096015,3.42869298,129.25,129.21,2.04637003]
[1769144100424,3.42869298,129.25,129.2,0.05279999]
[1769144100625,3.42869298,129.25,129.2,2.09917002]
[1769144102422,3.53016734,129.27,129.21,3.44821975]
[1769144102625,5.78220186,129.26,129.21,3.44821975]
[1769144102828,3.53016734,129.25,129.2,2.04637003]
[1769144103220,3.53016734,129.25,129.22,0.05229403]
[1769144107021,3.53016734,129.25,129.17,3.21250729]
[1769144107227,3.3661524,129.23,129.16,5.25887732]
[1769144107526,9.15069745,129.22,129.16,5.25887732]
[1769144107723,3.3661524,129.22,129.16,5.25887732]
[1769144109025,3.3661524,129.22,129.17,2.04637003]
[1769144109229,3.3661524,129.22,129.16,2.04637003]
[1769144111122,0.05096849,129.2,129.16,2.04637003]
[1769144112934,0.05096849,129.2,129.15,5.26014988]
[1769144113529,3.3661524,129.22,129.17,5.26014988]
[1769144114731,3.3661524,129.22,129.18,0.05622409]
[1769144118722,3.3661524,129.24,129.18,0.05622409]
[1769144119234,10.3380524,129.24,129.18,0.05622409]
[1769144119431,3.3661524,129.23,129.18,0.05622409]
[1769144122038,3.3661524,129.23,129.18,2.10386668]
[1769144122229,3.3661524,129.23,129.19,2.04764259]
[1769144122434,3.3661524,129.23,129.18,5.31637397]
[1769144126340,3.3661524,129.23,129.19,2.04764259]
[1769144130538,3.3661524,129.23,129.18,2.10386668]
[1769144149760,3.3661524,129.23,129.18,0.05622409]
[1769144154558,10.3385524,129.23,129.18,0.05622409]
[1769144155355,10.32414406,129.22,129.18,0.05622409]
[1769144155657,3.35114406,129.21,129.18,0.05622409]
[1769144162467,3.2930716,129.2,129.15,3.34971797]
[1769144169071,3.2930716,129.2,129.15,5.39736056]
[1769144169875,3.2930716,129.2,129.16,3.56154105]
[1769144170579,7.02653616,129.21,129.17,0.04906516]
[1769144171881,10.53116708,129.21,129.17,0.04906516]
[1769144174885,3.55756708,129.21,129.17,0.04906516]
[1769144177984,3.55756708,129.21,129.17,2.09643597]
[1769144179588,0.05293616,129.21,129.17,5.65797702]